Cogmind - Beta 10.2 @@@ ROGUE MODE // 2020.12.09 @ 15:41:45 // Halloween2020/ForbiddenLore Player: ILikeMonsters1890 Result: Destroyed by C-40 Crusher with Compactor Performance ------------- Evolutions (3) 1500 Regions Visited (7) 1400 Robots Destroyed (37) 185 Value Destroyed (982) 982 Prototype IDs (1) 20 Alien Tech Used (0) 0 Bonus (357) 357 TOTAL SCORE: 4444 Bonus ------- High Alert Combat Kills 105 Aligned with FarCom 300 Friendly Fire -48 Cogmind --------- Core Integrity 0/700 Matter 90/300 Energy 100/100 System Corruption 8% Temperature Cool (0) Movement Core (50) Location -7/Waste Parts ------- > --- POWER (2) -------- (None) > --- PROPULSION (5) --- (None) > --- UTILITY (4) ------ (None) > --- WEAPON (2) ------- (None) > --- INVENTORY (4) ---- Light Treads Light Treads Peak State ------------ > --- POWER ------------ Improved Ion Engine Light Deuterium Engine > --- PROPULSION ------- Armored Treads Advanced Treads Advanced Treads Advanced Treads Advanced Treads > --- UTILITY ---------- Large Storage Unit Sensor Array Improved Terrain Scanner > --- WEAPON ----------- Particle Cannon Grenade Launcher > --- INVENTORY -------- Ion Engine Improved Ion Engine Improved Ion Engine Light Treads Light Treads Light Treads Beam Rifle Particle Cannon [Rating: 28] Favorites ----------- Power Ion Engine Engine Ion Engine Propulsion Light Treads Treads Light Treads Utility Large Storage Unit Device Sensor Array Storage Large Storage Unit Weapon Grenade Launcher Energy Gun Small Laser Energy Cannon Particle Cannon Ballistic Gun Assault Rifle Ballistic Cannon Light Cannon Launcher Grenade Launcher Build | -11 -10 -10 -10 -9 -8 -7 -7 ------- Run | Scr Mat Min Exi Min Mat Fac Was Slots Evolved 6 | . . . . . 4 2 . Power 1 | . . . . . 1 . . Propulsion 3 | . . . . . 2 1 . Utility 2 | . . . . . 1 1 . Weapon . | . . . . . . . . Parts Attached 36 | 7 3 1 1 . 17 1 6 Power 9 | 1 . . . . 5 . 3 Engine 9 | 1 . . . . 5 . 3 Core . | . . . . . . . . Reactor . | . . . . . . . . Propulsion 11 | 2 . . . . 7 1 1 Treads 11 | 2 . . . . 7 1 1 Leg . | . . . . . . . . Wheel . | . . . . . . . . Hover . | . . . . . . . . Flight . | . . . . . . . . Utility 6 | 2 1 1 1 . 1 . . Device 4 | 1 . 1 1 . 1 . . Storage 2 | 1 1 . . . . . . Processor . | . . . . . . . . Hackware . | . . . . . . . . Protection . | . . . . . . . . Artifact . | . . . . . . . . Weapon 10 | 2 2 . . . 4 . 2 Energy Gun 3 | 1 . . . . 1 . 1 Energy Cannon 2 | . . . . . 1 . 1 Ballistic Gun 1 | 1 . . . . . . . Ballistic Cannon 1 | . 1 . . . . . . Launcher 3 | . 1 . . . 2 . . Special Weapon . | . . . . . . . . Impact Weapon . | . . . . . . . . Slashing Weapon . | . . . . . . . . Piercing Weapon . | . . . . . . . . Special Melee Weapon . | . . . . . . . . Unidentified Prototypes 1 | . . . 1 . . . . Parts Lost 15 | . . . . . 5 . 10 Power 6 | . . . . . 2 . 4 Propulsion 4 | . . . . . 1 . 3 Utility 1 | . . . . . . . 1 Weapon 4 | . . . . . 2 . 2 Highest Loss Streak 10 | . . . . . 2 . 10 Average Slot Usage (%) 96 | . 100 100 100 100 92 92 60 Engine 14 | . 14 14 14 14 16 15 9 Treads 28 | . 28 28 28 28 30 38 26 Device 14 | . 14 14 14 14 18 15 10 Storage 12 | . 14 14 14 14 9 7 4 Energy Gun 1 | . 8 . . . 1 . . Ballistic Cannon 10 | . 5 14 14 14 5 . . Launcher 11 | . 12 14 14 14 8 7 4 Naked Turns 21 | . . . . . . . 21 Heaviest Build 39 | 13 28 28 28 28 39 37 37 Greatest Support 108 | 40 40 40 40 40 88 108 108 Greatest Overweight (x) . | . . . . . . . . Average Overweight (x) . | . . . . . . . . Largest Inventory Capacity 10 | 6 10 10 10 10 10 10 10 Average Capacity 9 | 5 9 10 10 10 10 10 8 Most Carried 10 | 4 4 6 6 6 10 8 8 Average Carried 5 | 1 3 4 5 5 6 8 6 Final Capacity 10 | 6 10 10 10 10 10 10 4 Final Carried 9 | 2 4 5 5 6 9 8 2 Class Distribution -------------------- 71% | Mutant 23% | Skirmisher 4% | Scavenger-Skirmisher Dominant Class ---------------- Mutant | -10/Materials Mutant | -10/Mines Mutant | -10/Exiles Skirmisher | -9/Mines Skirmisher | -8/Materials Skirmisher | -7/Factory Skirmisher | -7/Waste Resources | -11 -10 -10 -10 -9 -8 -7 -7 ----------- Run | Scr Mat Min Exi Min Mat Fac Was Matter Collected 911 | 210 3 113 124 . 461 . . Remotely . | . . . . . . . . Salvage Created 672 | 18 49 127 . 18 460 . . Parts 58 | 2 . 7 . 3 46 . . Haulers Intercepted . | . . . . . . . . Recyclers Shooed 1 | . . . . . 1 . . Parts Field Recycled . | . . . . . . . . Retrieved Matter . | . . . . . . . . Parts Self-Destructed . | . . . . . . . . Prevented . | . . . . . . . . Kills | -11 -10 -10 -10 -9 -8 -7 -7 ------- Run | Scr Mat Min Exi Min Mat Fac Was Combat Hostiles Destroyed 29 | . 2 4 . 4 19 . . Cannons 11 | . 1 2 . 1 7 . . AOE 18 | . 1 2 . 3 12 . . Classes Destroyed 9 | 1 1 . . 1 6 . . Worker 2 | . . . . . 2 . . Builder 1 | . . . . . 1 . . Tunneler 2 | 1 . 1 . . . . . Mechanic 1 | . . . . . 1 . . Watcher 2 | . . . . . 2 . . Swarmer 14 | . . . . 4 10 . . Grunt 6 | . 2 4 . . . . . Sentry 6 | . . . . . 6 . . Hunter 3 | . . . . . 3 . . Best Kill Streak 6 | 1 2 3 . 4 6 . . Combat Bots Only 4 | . 2 2 . 4 4 . . Max Kills in Single Turn 3 | 1 1 2 . 2 3 . . Gunslinging . | . . . . . . . . Exploded 3 | . 1 1 . 2 3 . . Melee . | . . . . . . . . Uniques/NPCs Destroyed . | . . . . . . . . Combat | -11 -10 -10 -10 -9 -8 -7 -7 -------- Run | Scr Mat Min Exi Min Mat Fac Was Damage Taken 2112 | . 78 140 . 21 906 . 967 Core 865 | . 14 27 . . 91 . 733 Absorbed by Shields . | . . . . . . . . Core Remaining (%) 88 | 100 . . . 83 83 . . Volleys Fired 75 | 2 5 11 . 3 47 . 7 Largest 2 | 2 2 2 . 2 2 . 2 Hottest 98 | 60 65 65 . 65 98 . 98 Shots Fired 111 | 4 10 13 . 6 67 . 11 Gun 10 | 4 . . . . 6 . . Cannon 56 | . 5 11 . 3 32 . 5 Launcher 45 | . 5 2 . 3 29 . 6 Special . | . . . . . . . . Kinetic 50 | 2 5 11 . 3 29 . . Thermal 16 | 2 . . . . 9 . 5 Explosive 45 | . 5 2 . 3 29 . 6 Electromagnetic . | . . . . . . . . Robot Hit Streak 11 | 4 7 11 . . 8 . 8 Robot Miss Streak 5 | . 1 1 . 5 4 . 1 Penetration Max . | . . . . . . . . Secondary Targets . | . . . . . . . . Shots Hit Robots 73 | 4 8 12 . . 40 . 9 Core Hits 75 | 1 7 9 . 4 46 . 8 Critical Hits 1 | . 1 . . . . . . Critical Kills . | . . . . . . . . Critical Parts Destroyed 1 | . 1 . . . . . . Melee Attacks . | . . . . . . . . Impact . | . . . . . . . . Slashing . | . . . . . . . . Piercing . | . . . . . . . . Sneak Attacks . | . . . . . . . . Combat Hostiles . | . . . . . . . . Follow-up Attacks . | . . . . . . . . Damage Inflicted 3473 | 45 268 323 . 222 1600 . 1015 Guns 89 | 45 . . . . 44 . . Cannons 756 | . 72 185 . 17 401 . 81 Explosions 2552 | . 196 138 . 205 1155 . 858 Melee . | . . . . . . . . Ramming 76 | . . . . . . . 76 Kinetic 680 | 25 72 185 . 17 381 . . Thermal 202 | 20 . . . . 101 . 81 Explosive 2515 | . 196 138 . 205 1118 . 858 Electromagnetic . | . . . . . . . . Impact . | . . . . . . . . Slashing . | . . . . . . . . Piercing . | . . . . . . . . Highest Corruption 8 | . . . . . . . 8 Average Corruption 8 | . . . . . . . 8 Corruption Purged . | . . . . . . . . Effects 1 | . . . . . . . 1 Message Errors 1 | . . . . . . . 1 Overload Shots . | . . . . . . . . Overflow Damage 122 | . . . . 27 64 . 31 Projectiles . | . . . . . . . . Explosions 122 | . . . . 27 64 . 31 Melee . | . . . . . . . . Knockbacks 5 | . 2 . . . 3 . . Impact . | . . . . . . . . Kinetic 5 | . 2 . . . 3 . . Secondary . | . . . . . . . . Self-Inflicted Damage 288 | . . 31 . . 161 . 96 Shots 11 | . . 2 . . 7 . 2 Rammed 22 | . . . . . . . 22 Targets Rammed 22 | . . . . . . . 22 Kicked . | . . . . . . . . Crushed . | . . . . . . . . Highest Temperature 144 | . 51 24 . 9 78 . 144 Average Temperature 29 | . 28 10 . 5 25 . 80 Received Heat Transfer 237 | . 45 66 . . 126 . . Siege Activations . | . . . . . . . . Robots Corrupted . | . . . . . . . . Combat Hostiles . | . . . . . . . . Parts Fried . | . . . . . . . . Impact Corruptions . | . . . . . . . . Robots Melted . | . . . . . . . . Combat Hostiles . | . . . . . . . . Parts Melted . | . . . . . . . . Heat Transferred 396 | 50 . . . . 198 . 148 Parts Sabotaged . | . . . . . . . . Parts Stolen . | . . . . . . . . Parts Stripped . | . . . . . . . . Power Chain Reactions . | . . . . . . . . Missiles Intercepted . | . . . . . . . . Alert | -11 -10 -10 -10 -9 -8 -7 -7 ------- Run | Scr Mat Min Exi Min Mat Fac Was Peak Influence 785 | 5 53 125 . 135 785 357 143 Initial 357 | . 3 20 . . 52 357 129 Average 214 | . 19 58 . 133 444 357 101 Maximum Alert Level 3 | . . . . . 3 1 . Low Security (%) 68 | 100 100 100 . 100 25 . 100 Level 1 8 | . . . . . 13 100 . Level 2 19 | . . . . . 52 . . Level 3 2 | . . . . . 8 . . Level 4 . | . . . . . . . . Level 5 . | . . . . . . . . High Security . | . . . . . . . . Max Security . | . . . . . . . . Squads Dispatched 4 | . 1 . . . 2 1 . Investigation 2 | . . . . . 1 1 . Extermination . | . . . . . . . . Reinforcement 2 | . 1 . . . 1 . . Assault . | . . . . . . . . Garrison . | . . . . . . . . Intercept . | . . . . . . . . Construction Impeded . | . . . . . . . . Haulers Reinforced . | . . . . . . . . Stealth | -11 -10 -10 -10 -9 -8 -7 -7 --------- Run | Scr Mat Min Exi Min Mat Fac Was Distress Signals 2 | . 1 . . . 1 . . Communications Jammed . | . . . . . . . . Distress Signals . | . . . . . . . . Times Spotted 44 | . 5 4 . 2 28 . 5 Peak Tracking Total 7 | . 3 2 . 2 7 . 5 Tactical Retreats 2 | . . . . . 2 . . Traps | -11 -10 -10 -10 -9 -8 -7 -7 ------- Run | Scr Mat Min Exi Min Mat Fac Was Traps Triggered 1 | . . . . . . 1 . Indirectly . | . . . . . . . . Trap Hack Attempts . | . . . . . . . . Triggered . | . . . . . . . . Disarmed . | . . . . . . . . Reprogrammed . | . . . . . . . . Reused . | . . . . . . . . Traps Extracted . | . . . . . . . . Installed . | . . . . . . . . Triggered . | . . . . . . . . Exploded 1 | . . . 1 . . . . Machines | -11 -10 -10 -10 -9 -8 -7 -7 ---------- Run | Scr Mat Min Exi Min Mat Fac Was Machines Disabled 8 | . . . . 2 6 . . Max in Single Turn 2 | . . . . 2 2 . . Machines Sabotaged . | . . . . . . . . Garrisons Compromised . | . . . . . . . . Overloaded Fab Kills . | . . . . . . . . Fab Network Shutdowns . | . . . . . . . . Hacking | -11 -10 -10 -10 -9 -8 -7 -7 --------- Run | Scr Mat Min Exi Min Mat Fac Was Machines Accessed 7 | . 1 1 1 . 3 1 . Terminals 4 | . . . . . 3 1 . Fabricators . | . . . . . . . . Repair Stations . | . . . . . . . . Recycling Units 1 | . 1 . . . . . . Scanalyzers . | . . . . . . . . Garrison Access . | . . . . . . . . Total Hacks 18 | . 2 1 1 . 11 3 . Successful 8 | . . 1 1 . 4 2 . Failed 10 | . 2 . . . 7 1 . Catastrophic 1 | . . . . . 1 . . Database Lockouts . | . . . . . . . . Manual 12 | . 2 . 1 . 9 . . Terminals 14 | . . . . . 11 3 . Fabricators . | . . . . . . . . Repair Stations . | . . . . . . . . Recycling Units 2 | . 2 . . . . . . Scanalyzers . | . . . . . . . . Garrison Access . | . . . . . . . . Terminal Hacks 8 | . . 1 1 . 4 2 . Record 3 | . . . 1 . . 2 . Open Door 1 | . . 1 . . . . . Alert Level 1 | . . . . . 1 . . Recall Investigation 1 | . . . . . 1 . . Recall Reinforcements 1 | . . . . . 1 . . Zone Layout 1 | . . . . . 1 . . Fabricator Hacks . | . . . . . . . . Repair Station Hacks . | . . . . . . . . Recycling Unit Hacks . | . . . . . . . . Scanalyzer . | . . . . . . . . Garrison Access Hacks . | . . . . . . . . Unauthorized Hacks . | . . . . . . . . Terminals . | . . . . . . . . Fabricators . | . . . . . . . . Repair Stations . | . . . . . . . . Recycling Units . | . . . . . . . . Scanalyzers . | . . . . . . . . Garrison Access . | . . . . . . . . Data Cores Recovered . | . . . . . . . . Used . | . . . . . . . . Hacking Detections 5 | . 1 . . . 3 1 . Full Trace Events 2 | . . . . . 1 1 . Feedback Events . | . . . . . . . . Feedback Blocked . | . . . . . . . . Robot Schematics Acquired . | . . . . . . . . Robots Built . | . . . . . . . . Matter . | . . . . . . . . Time . | . . . . . . . . Total Robot Build Rating . | . . . . . . . . Part Schematics Acquired . | . . . . . . . . Parts Built . | . . . . . . . . Matter . | . . . . . . . . Time . | . . . . . . . . Total Part Build Rating . | . . . . . . . . Parts Repaired . | . . . . . . . . Time . | . . . . . . . . Parts Recycled . | . . . . . . . . Recycled Matter . | . . . . . . . . Retrieved Matter . | . . . . . . . . Retrieved Components . | . . . . . . . . Parts Scanalyzed . | . . . . . . . . Part Schematics Acquired . | . . . . . . . . Parts Damaged . | . . . . . . . . Bothacking | -11 -10 -10 -10 -9 -8 -7 -7 ------------ Run | Scr Mat Min Exi Min Mat Fac Was Used RIF Installer . | . . . . . . . . Robots Hacked . | . . . . . . . . Non-combat . | . . . . . . . . Combat . | . . . . . . . . Robot Hacks Applied . | . . . . . . . . Relay Couplers Released . | . . . . . . . . Robots Rewired . | . . . . . . . . Allies Hacked . | . . . . . . . . Hacks Repelled . | . . . . . . . . Allies | -11 -10 -10 -10 -9 -8 -7 -7 -------- Run | Scr Mat Min Exi Min Mat Fac Was Total Allies 1 | . . . . . . . 1 Largest Group 1 | . . . . . . . 1 Highest-Rated Group 31 | . . . . . . . 31 Highest-Rated Ally 31 | . . . . . . . 31 Total Orders . | . . . . . . . . Ally Attacks 15 | . . . . . . . 15 Total Damage 250 | . . . . . . . 250 Kills . | . . . . . . . . Allies Corrupted . | . . . . . . . . Allies Melted . | . . . . . . . . Intel | -11 -10 -10 -10 -9 -8 -7 -7 ------- Run | Scr Mat Min Exi Min Mat Fac Was Robot Analysis Total . | . . . . . . . . Derelict Logs Recovered 1 | . . 1 . . . . . Drone Launches . | . . . . . . . . Drone Recoveries . | . . . . . . . . Exploration | -11 -10 -10 -10 -9 -8 -7 -7 ------------- Run | Scr Mat Min Exi Min Mat Fac Was Turns Passed 2550 | 76 163 590 749 151 668 66 87 Spaces Moved 1435 | 44 87 352 466 89 326 44 27 Core 14 | 14 . . . . . . . Treads 1421 | 30 87 352 466 89 326 44 27 Legs . | . . . . . . . . Wheels . | . . . . . . . . Hover . | . . . . . . . . Flight . | . . . . . . . . Fastest Speed 50 | 50 160 160 160 160 145 150 150 Average Speed 157 | 125 160 160 160 160 156 150 150 Slowest Speed 162 | 160 160 160 160 160 162 150 150 Overloaded Moves . | . . . . . . . . Propulsion Burnouts . | . . . . . . . . Robots Hopped . | . . . . . . . . Cave-ins Triggered . | . . . . . . . . Time Travels 1 | . . . 1 . . . . Exploration Rate (%) 38 | 4 29 88 92 23 48 3 22 Regions Visited 7 Branch Regions 3 Pre-discovered Areas . | . . . . . . . . Known Exits Taken . | . . . . . . . . Unknown Exits Taken 6 | 1 1 1 1 1 1 . . Scrap Searched 1 | . . 1 . . . . . Spaces Dug 4 | . . . . . 4 . . Terrain Destroyed 304 | . 24 19 . 14 226 . 21 Melee . | . . . . . . . . Projectile . | . . . . . . . . AOE 304 | . 24 19 . 14 226 . 21 Terrain Rammed . | . . . . . . . . Walls Destroyed . | . . . . . . . . Machines Disabled . | . . . . . . . . Actions | -11 -10 -10 -10 -9 -8 -7 -7 --------- Run | Scr Mat Min Exi Min Mat Fac Was Total 1613 | 61 100 366 471 92 416 45 62 Wait 1 | . . . . . 1 . . Move 1429 | 43 86 351 465 88 325 44 27 Hop . | . . . . . . . . Pick Up 38 | 9 4 2 3 1 19 . . Fast Attach . | . . . . . . . . Attach 24 | 7 . . 1 . 9 1 6 Detach . | . . . . . . . . Swap 12 | . 3 1 . . 8 . . Drop 12 | . 2 1 2 . 7 . . Fire 75 | 2 5 11 . 3 47 . 7 Melee . | . . . . . . . . Ram 21 | . . . . . . . 21 Kick . | . . . . . . . . Crush 1 | . . . . . . . 1 Escape Stasis . | . . . . . . . . Rewire . | . . . . . . . . Trap . | . . . . . . . . Miscellaneous . | . . . . . . . . Route ------- -11/Scrapyard -10/Materials -10/Mines (discovered 2 exits: [*Mat] / *Exi) -10/Exiles -9/Mines -8/Materials -7/Factory -7/Waste History --------- Turn | Location | Event 5 | -11/Scrapyard | Discovered new exit (range 15) 77 | -11/Scrapyard | Entered Materials 214 | -10/Materials | Discovered new exit (range 16) 240 | -10/Materials | Entered Mines 303 | -10/Mines | Met a Derelict bent on vengeance 312 | -10/Mines | Build established: Mutant 353 | -10/Mines | Learned Materials garrison access intel 359 | -10/Mines | Found the Drone Emporium 619 | -10/Mines | Discovered new exit (range 8) 822 | -10/Mines | Deemed a non-threat by the Exiles lab entrance 822 | -10/Mines | Discovered new exit (range 5) 830 | -10/Mines | Entered Exiles 869 | -10/Exiles | Met 8R-AWN 896 | -10/Exiles | Met EX-HEX 989 | -10/Exiles | Met EX-DEC 1031 | -10/Exiles | Visited The Gauntlet 1299 | -10/Exiles | Met EX-BIN 1341 | -10/Exiles | Aligned with FarCom system 1342 | -10/Exiles | Given EX-Vault access code 1419 | -10/Exiles | Opened EX-Vault 1427 | -10/Exiles | Found Prototype Device 1428 | -10/Exiles | Identified Chronowheel 1428 | -10/Exiles | Activated Chronowheel 1428 | -10/Exiles | Spacetime reconverged on an earlier point 1463 | -10/Exiles | Warned to stay clear of 0b10 Research branches 1486 | -10/Exiles | Exiles lab attacked by MAIN.C 1563 | -10/Exiles | Discovered new exit (range 11) 1579 | -10/Exiles | Entered Mines 1696 | -9/Mines | Discovered new exit (range 14) 1711 | -9/Mines | Received a Rocket Launcher from a helpful Derelict 1730 | -9/Mines | Entered Materials 1730 | -8/Materials | Evolved 4 slots: Power x1, Propulsion x2, Utility x1 1731 | -8/Materials | Loaded intel: 1 garrison access location 2391 | -8/Materials | Discovered new exit (range 5) 2398 | -8/Materials | Entered Factory 2398 | -7/Factory | Evolved 2 slots: Propulsion x1, Utility x1 2464 | -7/Factory | Sucked down chute 2464 | -7/Factory | Entered Waste 2465 | -7/Waste | Met a frightened Derelict 2479 | -7/Waste | EMP discharged 2500 | -7/Waste | Spotted C-40 Crusher 2503 | -7/Waste | Spotted C-40 Crusher 2519 | -7/Waste | Crushed by Compactor (1 part destroyed, 1 dropped) 2519 | -7/Waste | Spotted C-40 Crusher 2521 | -7/Waste | Crushed by Compactor (1 part destroyed, 1 dropped) 2522 | -7/Waste | Crushed by Compactor (1 part destroyed, 1 dropped) 2524 | -7/Waste | Crushed by Compactor (1 part destroyed, 1 dropped) 2525 | -7/Waste | Crushed by Compactor (1 part destroyed, 2 dropped) 2527 | -7/Waste | Crushed by Compactor (1 part destroyed, 2 dropped) 2528 | -7/Waste | Crushed by Compactor (1 part destroyed) 2530 | -7/Waste | Crushed by Compactor (1 part destroyed) 2540 | -7/Waste | Core integrity fell below 50% 2547 | -7/Waste | Core integrity fell below 20% 2551 | -7/Waste | Destroyed by C-40 Crusher with Compactor Last Messages --------------- Imp. Ion Engine crushed. Slammed into C-40 Crusher. Lrg. Storage Unit crushed. Lgt. Treads crushed. Slammed into C-40 Crusher. Destabilizing: Core damaged (-35). Slammed into C-40 Crusher. AY-XQK(g) Carbon-fiber Leg crushed. AY-XQK(g) Lgt. Angular Momentum Engine crushed. AY-XQK(g) suffers critical hit. Slammed into C-40 Crusher. Lgt. Angular Momentum Engine crushed. AY-XQK(g) Carbon-fiber Leg crushed. AY-XQK(g) Beamcaster crushed. AY-XQK(g) destroyed. Slammed into C-40 Crusher. Destabilizing: Core damaged (-14). Slammed into C-40 Crusher. Beamcaster crushed. Slammed into C-40 Crusher. Map ----- +----------------------------------------------------+ | ?????????????????????????????????????????????????? | | ?????????????????????????????????????????????????? | | ?????????????????????????????????????????????????? | | ?????????????????????????????????????????????????? | | ?????????????????????????????????????????????????? | | ?????????????????????????????????????????????????? | | ?????????????????????????????????????????????????? | | ?????????????????????????????????????????????????? | | ?????????????????????????????????????????????????? | | ?????????????????????????????????????????????????? | | ???????????????????????? ?????????????????????? | | ???????????????????????? #????????????????????? | | ??????????????????????## #????????????????????? | | ??????????????????????# ##???????????????????? | | ?????????????????????## #####???????????????? | | ?????????????????????# ????????????????? | | ?????????????????????# ?????????????????? | | ???????????????#????## C?????????????????? | | ?????????????#???????# ??????????????????? | | ?????????????????#??## # ???????????????????? | | ?????????############ #???#???????????????? | | ?????????# # CC ????????????????????? | | ?????????# # CC ##???????????????????? | | ?????????# # CCCC #????#??????????????? | | ?????????# CCCCCC #????????????????????? | | ?????????# CC =@=%#????????????????????? | | ?????????# *] #??#?????????????????? | | ?????????# = #????????????????????? | | ?????????# #### #????????????????????? | | ?????????# #??# #??#?????????????????? | | ?????????# #??# #??#?????????????????? | | ?????????############??# #??##?##?????????????? | | ?????????????????????### ###?????? ???????????? | | ?????????????#???????# #??????????????????? | | ?????????????????????# #?#????????????????? | | ?????????????????????# #??????????????????? | | ?????????????????????# #??????????????????? | | ????????????#??????#?# #??????????????????? | | ?????????????????????# #??????????????????? | | ?????????????#???????# #??????????????????? | | ?????????????????????# #??????????????????? | | ?????????????????????##########??????????????????? | | ?????????????????????????????????????????????????? | | ???????????????????????????#?????????????????????? | | ?????????????????????????????????????????????????? | | ?????????????????????????????????????????????????? | | ???????????????????????????????#?????????????????? | | ?????????????????????????????????????????????????? | | ?????????????????????????????????????????????????? | | ?????????????????????????????????????????????????? | +----------------------------------------------------+ Best States ------------- Heat Dissipation 34 Energy Generation 21 Energy Capacity 430 Matter Stores 300 Matter Capacity 300 Sight Range 16 Robot Scan Range 10 Terrain Scan Range 16 Terrain Scan Density 10 Evasion (%) 50 Recoil Reduction 5 Item Schematics ----------------- None Robot Schematics ------------------ None Fabricated ------------ Nothing Alien Tech Used ----------------- None Achievements -------------- None Challenges ------------ None Game ------ Seed TrapAluminumAutohacker Manual? 0 Play Time 00:42:19 Cumulative 8.8 hours Start 2020.11.28 @ 12:13:57 End 2020.12.09 @ 15:41:45 Sessions 5 Manual Loads 0 Difficulty Rogue Special Mode Halloween2020/ForbiddenLore Game No. 13 Rogue 13 Adventurer 0 Explorer 0 Win Type - Total 0 Types 0/0/0/0/0/0/0/0/0 Lore% 16 Gallery% 11 Achievement% 10 Wizard Run 0 Options --------- ASCII 0 Keyboard 0 Movement Numpad Keybinds 0 Fullscreen 2 Font 18/SmallcapsGlow Map View 76x50 Tactical HUD 0 Map Filters NONE Filters NONE Steam 1 RUN: 53d99bdf-d1c2-4738-9eeb-d18f5acb0fd8